[Event "Titled Tuesday Blitz October 31 Late 2023"]
[White "Bazilius, Augustinas"]
[Black "Elbebiber"]
[WhiteFideId "12832251"]
[WhiteElo "2539"]
[BlackElo "2149"]
[Result "0-1"]
[Round "1"]
[TimeControl "180+1"]
[Date "2023.10.31"]
[WhiteClock "0:00:01"]
[BlackClock "0:00:08"]
[Board "159"]

1. d4 {[%clk 0:02:59]}  e6 {[%clk 0:02:57]} 2. c4 {[%clk 0:03:00]}  Nf6 {[%clk 0:02:56]} 3. Nf3 {[%clk 0:02:57]}  Bb4+ {[%clk 0:02:52]} 4. Bd2 {[%clk 0:02:57]}  Qe7 {[%clk 0:02:48]} 5. g3 {[%clk 0:02:57]}  Nc6 {[%clk 0:02:42]} 6. e3 {[%clk 0:02:56]}  Ne4 {[%clk 0:02:23]} 7. Bg2 {[%clk 0:02:55]}  Bxd2+ {[%clk 0:02:15]} 8. Nfxd2 {[%clk 0:02:55]}  Nxd2 {[%clk 0:02:14]} 9. Qxd2 {[%clk 0:02:50]}  d6 {[%clk 0:02:08]} 10. O-O {[%clk 0:02:45]}  O-O {[%clk 0:02:07]} 11. Nc3 {[%clk 0:02:45]}  Re8 {[%clk 0:01:50]} 12. a3 {[%clk 0:02:23]}  e5 {[%clk 0:01:40]} 13. Nd5 {[%clk 0:02:23]}  Qd8 {[%clk 0:01:39]} 14. b4 {[%clk 0:02:23]}  exd4 {[%clk 0:01:32]} 15. exd4 {[%clk 0:02:24]}  Ne7 {[%clk 0:01:29]} 16. Nf4 {[%clk 0:02:18]}  Rb8 {[%clk 0:01:16]} 17. Rfe1 {[%clk 0:02:15]}  Bd7 {[%clk 0:01:07]} 18. a4 {[%clk 0:01:21]}  Ng6 {[%clk 0:00:59]} 19. Rxe8+ {[%clk 0:01:18]}  Bxe8 {[%clk 0:00:56]} 20. b5 {[%clk 0:01:17]}  Nxf4 {[%clk 0:00:52]} 21. Qxf4 {[%clk 0:01:17]}  Bd7 {[%clk 0:00:45]} 22. c5 {[%clk 0:01:12]}  dxc5 {[%clk 0:00:39]} 23. dxc5 {[%clk 0:01:13]}  Be6 {[%clk 0:00:30]} 24. a5 {[%clk 0:01:09]}  b6 {[%clk 0:00:26]} 25. axb6 {[%clk 0:01:04]}  axb6 {[%clk 0:00:24]} 26. c6 {[%clk 0:00:36]}  h6 {[%clk 0:00:20]} 27. h4 {[%clk 0:00:33]}  Rc8 {[%clk 0:00:14]} 28. Bf3 {[%clk 0:00:25]}  Qf6 {[%clk 0:00:14]} 29. Qxf6 {[%clk 0:00:20]}  gxf6 {[%clk 0:00:14]} 30. Be2 {[%clk 0:00:15]}  Kf8 {[%clk 0:00:15]} 31. f3 {[%clk 0:00:12]}  Ke7 {[%clk 0:00:15]} 32. Kf2 {[%clk 0:00:13]}  Kd6 {[%clk 0:00:13]} 33. Rd1+ {[%clk 0:00:12]}  Kc5 {[%clk 0:00:13]} 34. Rc1+ {[%clk 0:00:13]}  Kd6 {[%clk 0:00:13]} 35. Ra1 {[%clk 0:00:07]}  Kc5 {[%clk 0:00:13]} 36. g4 {[%clk 0:00:07]}  Bd5 {[%clk 0:00:12]} 37. Rc1+ {[%clk 0:00:06]}  Kb4 {[%clk 0:00:12]} 38. Rb1+ {[%clk 0:00:07]}  Kc5 {[%clk 0:00:12]} 39. Rc1+ {[%clk 0:00:06]}  Kb4 {[%clk 0:00:12]} 40. Rd1 {[%clk 0:00:07]}  Kc5 {[%clk 0:00:12]} 41. Ra1 {[%clk 0:00:03]}  Kb4 {[%clk 0:00:12]} 42. Re1 {[%clk 0:00:02]}  Kc5 {[%clk 0:00:12]} 43. Rb1 {[%clk 0:00:02]}  Kd6 {[%clk 0:00:11]} 44. Rd1 {[%clk 0:00:03]}  Kc5 {[%clk 0:00:12]} 45. Rb1 {[%clk 0:00:03]}  Kd6 {[%clk 0:00:12]} 46. Ke3 {[%clk 0:00:02]}  Kc5 {[%clk 0:00:12]} 47. Kd2 {[%clk 0:00:02]}  Rd8 {[%clk 0:00:11]} 48. Ke3 {[%clk 0:00:02]}  Kd6 {[%clk 0:00:11]} 49. Rd1 {[%clk 0:00:01]}  Kc5 {[%clk 0:00:11]} 50. Kf2 {[%clk 0:00:02]}  Rd6 {[%clk 0:00:10]} 51. Rc1+ {[%clk 0:00:02]}  Kd4 {[%clk 0:00:10]} 52. Rd1+ {[%clk 0:00:02]}  Ke5 {[%clk 0:00:10]} 53. Ra1 {[%clk 0:00:02]}  Re6 {[%clk 0:00:08]} 54. Ra7 {[%clk 0:00:02]}  Re7 {[%clk 0:00:09]} 55. Kg3 {[%clk 0:00:02]}  Kd6 {[%clk 0:00:09]} 56. Bd3 {[%clk 0:00:03]}  Kc5 {[%clk 0:00:09]} 57. Bf1 {[%clk 0:00:03]}  Bc4 {[%clk 0:00:10]} 58. Bxc4 {[%clk 0:00:02]}  Kxc4 {[%clk 0:00:11]} 59. Ra4+ {[%clk 0:00:01]}  Kxb5 {[%clk 0:00:10]} 60. Rf4 {[%clk 0:00:02]}  Re6 {[%clk 0:00:09]} 61. g5 {[%clk 0:00:02]}  hxg5 {[%clk 0:00:10]} 62. hxg5 {[%clk 0:00:03]}  fxg5 {[%clk 0:00:09]} 63. Rxf7 {[%clk 0:00:03]}  Kxc6 {[%clk 0:00:10]} 64. Kg4 {[%clk 0:00:04]}  b5 {[%clk 0:00:10]} 65. Kxg5 {[%clk 0:00:04]}  Rd6 {[%clk 0:00:10]} 66. f4 {[%clk 0:00:04]}  b4 {[%clk 0:00:11]} 67. f5 {[%clk 0:00:04]}  b3 {[%clk 0:00:11]} 68. Rf8 {[%clk 0:00:05]}  Kb7 {[%clk 0:00:11]} 69. Rh8 {[%clk 0:00:04]}  Rc6 {[%clk 0:00:09]} 70. Rh3 {[%clk 0:00:04]}  b2 {[%clk 0:00:08]} 71. f6 {[%clk 0:00:02]}  b1=Q {[%clk 0:00:08]} 72. f7 {[%clk 0:00:02]}  Qg1+ {[%clk 0:00:08]} 73. Kf5 {[%clk 0:00:01]}  Qf1+ {[%clk 0:00:08]} 74. Ke5 {[%clk 0:00:01]}  Qxh3 {[%clk 0:00:08]} 0-1


[Site "https://www.chess.com"]

[Event "Titled Tuesday Blitz October 31 Late 2023"]
[White "Petersson, Kjell"]
[Black "Richter, Paul"]
[WhiteFideId "1705148"]
[BlackFideId "2046350"]
[WhiteElo "2148"]
[BlackElo "2538"]
[Result "1-0"]
[Round "1"]
[TimeControl "180+1"]
[Date "2023.10.31"]
[WhiteClock "0:00:16"]
[BlackClock "0:00:03"]
[Board "160"]

1. d4 {[%clk 0:03:00]}  Nf6 {[%clk 0:02:59]} 2. Bf4 {[%clk 0:03:01]}  g6 {[%clk 0:02:59]} 3. Nc3 {[%clk 0:03:00]}  d5 {[%clk 0:02:58]} 4. e3 {[%clk 0:03:00]}  Bg7 {[%clk 0:02:58]} 5. Nb5 {[%clk 0:02:58]}  Na6 {[%clk 0:02:58]} 6. Nc3 {[%clk 0:02:58]}  Nb8 {[%clk 0:02:56]} 7. Nb5 {[%clk 0:02:57]}  Na6 {[%clk 0:02:56]} 8. Nc3 {[%clk 0:02:58]}  O-O {[%clk 0:02:31]} 9. Bxa6 {[%clk 0:02:58]}  bxa6 {[%clk 0:02:31]} 10. Be5 {[%clk 0:02:58]}  c5 {[%clk 0:02:23]} 11. dxc5 {[%clk 0:02:58]}  Be6 {[%clk 0:02:22]} 12. b4 {[%clk 0:02:46]}  a5 {[%clk 0:02:10]} 13. b5 {[%clk 0:02:39]}  Qc8 {[%clk 0:02:05]} 14. Qd4 {[%clk 0:02:31]}  Bf5 {[%clk 0:01:57]} 15. Nge2 {[%clk 0:02:13]}  Rd8 {[%clk 0:01:42]} 16. O-O {[%clk 0:02:05]}  g5 {[%clk 0:01:19]} 17. a4 {[%clk 0:01:59]}  Qe6 {[%clk 0:01:13]} 18. c6 {[%clk 0:01:45]}  Rac8 {[%clk 0:00:58]} 19. Rac1 {[%clk 0:01:36]}  h6 {[%clk 0:00:51]} 20. Ng3 {[%clk 0:01:34]}  Bg6 {[%clk 0:00:50]} 21. Rfd1 {[%clk 0:01:32]}  h5 {[%clk 0:00:45]} 22. f4 {[%clk 0:01:16]}  h4 {[%clk 0:00:40]} 23. Nge2 {[%clk 0:01:13]}  g4 {[%clk 0:00:37]} 24. Qxa7 {[%clk 0:01:09]}  g3 {[%clk 0:00:21]} 25. h3 {[%clk 0:01:08]}  Qf5 {[%clk 0:00:16]} 26. Nd4 {[%clk 0:01:04]}  Qh5 {[%clk 0:00:16]} 27. Qxe7 {[%clk 0:00:58]}  Re8 {[%clk 0:00:16]} 28. Qd6 {[%clk 0:00:56]}  Rcd8 {[%clk 0:00:13]} 29. Qc5 {[%clk 0:00:53]}  Ne4 {[%clk 0:00:13]} 30. Nxe4 {[%clk 0:00:52]}  Bxe5 {[%clk 0:00:13]} 31. Ng5 {[%clk 0:00:36]}  Bf6 {[%clk 0:00:11]} 32. c7 {[%clk 0:00:33]}  Rc8 {[%clk 0:00:10]} 33. b6 {[%clk 0:00:33]}  Bxg5 {[%clk 0:00:08]} 34. fxg5 {[%clk 0:00:32]}  Qxg5 {[%clk 0:00:08]} 35. Nf3 {[%clk 0:00:30]}  Qf6 {[%clk 0:00:05]} 36. Rxd5 {[%clk 0:00:24]}  Be4 {[%clk 0:00:05]} 37. Rg5+ {[%clk 0:00:21]}  Kh7 {[%clk 0:00:05]} 38. Rh5+ {[%clk 0:00:21]}  Kg7 {[%clk 0:00:05]} 39. Qg5+ {[%clk 0:00:20]}  Qxg5 {[%clk 0:00:06]} 40. Rxg5+ {[%clk 0:00:21]}  Kf6 {[%clk 0:00:06]} 41. Rc5 {[%clk 0:00:20]}  Bb7 {[%clk 0:00:06]} 42. Re1 {[%clk 0:00:18]}  Re4 {[%clk 0:00:05]} 43. Rxa5 {[%clk 0:00:17]}  Rce8 {[%clk 0:00:03]} 44. Ra7 {[%clk 0:00:17]}  Rxe3 {[%clk 0:00:02]} 45. Rxe3 {[%clk 0:00:17]}  Rxe3 {[%clk 0:00:03]} 46. Kf1 {[%clk 0:00:17]}  Ra3 {[%clk 0:00:03]} 47. Rxb7 {[%clk 0:00:16]}  Ra1+ {[%clk 0:00:03]} 48. Ke2 {[%clk 0:00:16]}  Ra2 {[%clk 0:00:03]} 49. Kd3 {[%clk 0:00:16]}  Rxc2 {[%clk 0:00:03]} 50. Kxc2 {[%clk 0:00:16]} 1-0


[Site "https://www.chess.com"]

[Event "Titled Tuesday Blitz October 31 Late 2023"]
[White "Curtis, John"]
[Black "Toncheva, Nadya"]
[WhiteFideId "3200256"]
[BlackFideId "2924056"]
[WhiteElo "2136"]
[BlackElo "2537"]
[Result "1-0"]
[Round "1"]
[TimeControl "180+1"]
[Date "2023.10.31"]
[WhiteClock "0:00:54"]
[BlackClock "0:00:02"]
[Board "162"]

1. e4 {[%clk 0:02:55]}  c5 {[%clk 0:03:00]} 2. Nf3 {[%clk 0:02:54]}  Nc6 {[%clk 0:03:00]} 3. Bb5 {[%clk 0:02:54]}  e6 {[%clk 0:03:00]} 4. Bxc6 {[%clk 0:02:52]}  bxc6 {[%clk 0:03:01]} 5. e5 {[%clk 0:02:51]}  f6 {[%clk 0:03:00]} 6. O-O {[%clk 0:02:50]}  Qc7 {[%clk 0:02:57]} 7. Re1 {[%clk 0:02:49]}  Ne7 {[%clk 0:02:57]} 8. b3 {[%clk 0:02:49]}  Ng6 {[%clk 0:02:57]} 9. Bb2 {[%clk 0:02:50]}  Be7 {[%clk 0:02:55]} 10. Na3 {[%clk 0:02:45]}  O-O {[%clk 0:02:51]} 11. Nc4 {[%clk 0:02:44]}  Ba6 {[%clk 0:02:50]} 12. d3 {[%clk 0:02:36]}  Bxc4 {[%clk 0:02:44]} 13. dxc4 {[%clk 0:02:35]}  fxe5 {[%clk 0:02:43]} 14. Nxe5 {[%clk 0:02:32]}  Bf6 {[%clk 0:02:26]} 15. Nxg6 {[%clk 0:02:31]}  hxg6 {[%clk 0:02:01]} 16. Bxf6 {[%clk 0:02:28]}  gxf6 {[%clk 0:01:58]} 17. Qg4 {[%clk 0:02:28]}  Kf7 {[%clk 0:01:56]} 18. Rad1 {[%clk 0:02:27]}  Rh8 {[%clk 0:01:53]} 19. h3 {[%clk 0:02:28]}  Rh5 {[%clk 0:01:49]} 20. Rd3 {[%clk 0:02:20]}  Rf5 {[%clk 0:01:26]} 21. Red1 {[%clk 0:02:13]}  d5 {[%clk 0:01:24]} 22. cxd5 {[%clk 0:02:09]}  cxd5 {[%clk 0:01:25]} 23. c4 {[%clk 0:02:07]}  d4 {[%clk 0:01:22]} 24. b4 {[%clk 0:02:07]}  e5 {[%clk 0:01:03]} 25. Qe4 {[%clk 0:02:06]}  Rd8 {[%clk 0:01:00]} 26. bxc5 {[%clk 0:02:03]}  Qxc5 {[%clk 0:00:58]} 27. Rb1 {[%clk 0:01:59]}  Rd7 {[%clk 0:00:56]} 28. Rb7 {[%clk 0:01:58]}  Rxb7 {[%clk 0:00:51]} 29. Qxb7+ {[%clk 0:01:58]}  Qe7 {[%clk 0:00:51]} 30. Qd5+ {[%clk 0:01:55]}  Kg7 {[%clk 0:00:49]} 31. f3 {[%clk 0:01:53]}  Qb4 {[%clk 0:00:20]} 32. Qd7+ {[%clk 0:01:15]}  Kh6 {[%clk 0:00:19]} 33. Qe8 {[%clk 0:01:14]}  Qe1+ {[%clk 0:00:19]} 34. Kh2 {[%clk 0:01:13]}  Qe2 {[%clk 0:00:07]} 35. h4 {[%clk 0:01:06]}  Kg7 {[%clk 0:00:04]} 36. Rb3 {[%clk 0:01:06]}  g5 {[%clk 0:00:01]} 37. h5 {[%clk 0:00:57]}  Rxf3 {[%clk 0:00:01]} 38. Rb7+ {[%clk 0:00:54]}  Kh6 {[%clk 0:00:02]} 39. Qg6# {[%clk 0:00:54]} 1-0


[Site "https://www.chess.com"]

[Event "Titled Tuesday Blitz October 31 Late 2023"]
[White "Osmak, Yuliia"]
[Black "miraitrunks"]
[WhiteFideId "14101602"]
[WhiteElo "2536"]
[BlackElo "2086"]
[Result "1-0"]
[Round "1"]
[TimeControl "180+1"]
[Date "2023.10.31"]
[WhiteClock "0:00:47"]
[BlackClock "0:01:08"]
[Board "163"]

1. e4 {[%clk 0:02:59]}  c5 {[%clk 0:02:59]} 2. Nf3 {[%clk 0:02:59]}  d6 {[%clk 0:02:59]} 3. Bb5+ {[%clk 0:02:58]}  Bd7 {[%clk 0:02:59]} 4. Bxd7+ {[%clk 0:02:58]}  Qxd7 {[%clk 0:03:00]} 5. O-O {[%clk 0:02:56]}  g6 {[%clk 0:02:59]} 6. c3 {[%clk 0:02:51]}  Bg7 {[%clk 0:02:59]} 7. d4 {[%clk 0:02:51]}  cxd4 {[%clk 0:02:59]} 8. cxd4 {[%clk 0:02:52]}  Nf6 {[%clk 0:02:57]} 9. Nc3 {[%clk 0:02:51]}  O-O {[%clk 0:02:56]} 10. h3 {[%clk 0:02:39]}  Nc6 {[%clk 0:02:56]} 11. e5 {[%clk 0:02:33]}  dxe5 {[%clk 0:02:55]} 12. dxe5 {[%clk 0:02:34]}  Qxd1 {[%clk 0:02:54]} 13. Rxd1 {[%clk 0:02:35]}  Ne8 {[%clk 0:02:48]} 14. Bf4 {[%clk 0:02:30]}  Nc7 {[%clk 0:02:46]} 15. Rd7 {[%clk 0:02:26]}  Rac8 {[%clk 0:02:46]} 16. Rad1 {[%clk 0:02:22]}  Rfd8 {[%clk 0:02:37]} 17. Bg3 {[%clk 0:02:09]}  Rxd7 {[%clk 0:02:32]} 18. Rxd7 {[%clk 0:02:10]}  Kf8 {[%clk 0:02:20]} 19. e6 {[%clk 0:01:39]}  Nxe6 {[%clk 0:02:19]} 20. Rxb7 {[%clk 0:01:39]}  Na5 {[%clk 0:02:11]} 21. Rxa7 {[%clk 0:01:36]}  Nc4 {[%clk 0:02:11]} 22. Nd5 {[%clk 0:01:31]}  Bxb2 {[%clk 0:01:54]} 23. Nxe7 {[%clk 0:01:29]}  Rd8 {[%clk 0:01:50]} 24. Nc6 {[%clk 0:01:27]}  Rd1+ {[%clk 0:01:48]} 25. Kh2 {[%clk 0:01:27]}  h5 {[%clk 0:01:40]} 26. a4 {[%clk 0:01:24]}  Nd2 {[%clk 0:01:30]} 27. Nxd2 {[%clk 0:01:21]}  Rxd2 {[%clk 0:01:31]} 28. a5 {[%clk 0:01:17]}  f5 {[%clk 0:01:26]} 29. a6 {[%clk 0:00:56]}  f4 {[%clk 0:01:24]} 30. Bh4 {[%clk 0:00:55]}  g5 {[%clk 0:01:24]} 31. Re7 {[%clk 0:00:54]}  gxh4 {[%clk 0:01:08]} 32. a7 {[%clk 0:00:47]} 1-0


[Site "https://www.chess.com"]

[Event "Titled Tuesday Blitz October 31 Late 2023"]
[White "Oliveira, Tiago Batista"]
[Black "Deeper44"]
[WhiteFideId "2108291"]
[WhiteElo "2050"]
[BlackElo "2535"]
[Result "0-1"]
[Round "1"]
[TimeControl "180+1"]
[Date "2023.10.31"]
[WhiteClock "0:00:00"]
[BlackClock "0:00:15"]
[Board "164"]

1. d4 {[%clk 0:02:57]}  Nf6 {[%clk 0:02:59]} 2. c4 {[%clk 0:02:56]}  g6 {[%clk 0:02:59]} 3. Nc3 {[%clk 0:02:55]}  Bg7 {[%clk 0:02:59]} 4. e4 {[%clk 0:02:55]}  d6 {[%clk 0:02:59]} 5. Nf3 {[%clk 0:02:56]}  O-O {[%clk 0:02:58]} 6. Be2 {[%clk 0:02:56]}  Na6 {[%clk 0:02:59]} 7. h3 {[%clk 0:02:48]}  e5 {[%clk 0:02:59]} 8. Be3 {[%clk 0:02:48]}  exd4 {[%clk 0:02:55]} 9. Bxd4 {[%clk 0:02:48]}  Re8 {[%clk 0:02:55]} 10. Qb1 {[%clk 0:01:57]}  Nc5 {[%clk 0:02:49]} 11. Bxc5 {[%clk 0:01:54]}  dxc5 {[%clk 0:02:49]} 12. O-O {[%clk 0:01:54]}  c6 {[%clk 0:02:46]} 13. Rd1 {[%clk 0:01:53]}  Qe7 {[%clk 0:02:46]} 14. Bd3 {[%clk 0:01:42]}  Nh5 {[%clk 0:02:41]} 15. Ne2 {[%clk 0:01:36]}  a5 {[%clk 0:02:25]} 16. Qc2 {[%clk 0:01:35]}  Qf6 {[%clk 0:02:11]} 17. Rab1 {[%clk 0:01:20]}  Be6 {[%clk 0:02:10]} 18. a3 {[%clk 0:01:16]}  Rad8 {[%clk 0:02:08]} 19. b4 {[%clk 0:01:12]}  axb4 {[%clk 0:01:49]} 20. axb4 {[%clk 0:01:12]}  cxb4 {[%clk 0:01:44]} 21. Rxb4 {[%clk 0:01:07]}  Bxh3 {[%clk 0:01:41]} 22. e5 {[%clk 0:00:56]}  Qe7 {[%clk 0:01:41]} 23. gxh3 {[%clk 0:00:54]}  Qxb4 {[%clk 0:01:40]} 24. Rb1 {[%clk 0:00:49]}  Qa3 {[%clk 0:01:33]} 25. Be4 {[%clk 0:00:47]}  Re7 {[%clk 0:01:12]} 26. c5 {[%clk 0:00:31]}  Red7 {[%clk 0:01:07]} 27. Rb3 {[%clk 0:00:26]}  Qa1+ {[%clk 0:01:02]} 28. Kg2 {[%clk 0:00:25]}  Bh6 {[%clk 0:00:36]} 29. Qc4 {[%clk 0:00:20]}  Re7 {[%clk 0:00:25]} 30. Rd3 {[%clk 0:00:07]}  Qa8 {[%clk 0:00:19]} 31. Rd6 {[%clk 0:00:07]}  Rde8 {[%clk 0:00:18]} 32. e6 {[%clk 0:00:06]}  Rxe6 {[%clk 0:00:16]} 33. Rxe6 {[%clk 0:00:06]}  Rxe6 {[%clk 0:00:16]} 34. Bc2 {[%clk 0:00:03]}  Qe8 {[%clk 0:00:16]} 35. Bb3 {[%clk 0:00:00]}  Rxe2 {[%clk 0:00:15]} 0-1


[Site "https://www.chess.com"]

[Event "Titled Tuesday Blitz October 31 Late 2023"]
[White "JackRodgers"]
[Black "Sailer, Mike"]
[BlackFideId "2012901"]
[WhiteElo "2535"]
[BlackElo "2049"]
[Result "1-0"]
[Round "1"]
[TimeControl "180+1"]
[Date "2023.10.31"]
[WhiteClock "0:00:02"]
[BlackClock "0:00:00"]
[Board "165"]

1. d4 {[%clk 0:02:59]}  g6 {[%clk 0:03:00]} 2. h4 {[%clk 0:02:58]}  h5 {[%clk 0:03:00]} 3. e4 {[%clk 0:02:57]}  Bg7 {[%clk 0:03:00]} 4. Be3 {[%clk 0:02:56]}  c5 {[%clk 0:02:58]} 5. c3 {[%clk 0:02:52]}  cxd4 {[%clk 0:02:58]} 6. Bxd4 {[%clk 0:02:48]}  Nf6 {[%clk 0:02:35]} 7. Nh3 {[%clk 0:02:28]}  d6 {[%clk 0:02:25]} 8. Ng5 {[%clk 0:02:27]}  Nc6 {[%clk 0:02:17]} 9. Bc4 {[%clk 0:02:02]}  e6 {[%clk 0:02:10]} 10. Be3 {[%clk 0:01:59]}  O-O {[%clk 0:02:01]} 11. O-O {[%clk 0:01:50]}  Ne5 {[%clk 0:02:00]} 12. Be2 {[%clk 0:01:49]}  b6 {[%clk 0:01:24]} 13. Qd2 {[%clk 0:01:31]}  Bb7 {[%clk 0:01:23]} 14. f3 {[%clk 0:01:31]}  d5 {[%clk 0:01:15]} 15. exd5 {[%clk 0:01:21]}  Nxd5 {[%clk 0:01:11]} 16. Bd4 {[%clk 0:01:15]}  Qc7 {[%clk 0:00:54]} 17. f4 {[%clk 0:01:12]}  Ng4 {[%clk 0:00:51]} 18. Bxg7 {[%clk 0:01:08]}  Kxg7 {[%clk 0:00:51]} 19. Bxg4 {[%clk 0:01:08]}  hxg4 {[%clk 0:00:51]} 20. Na3 {[%clk 0:00:42]}  Rad8 {[%clk 0:00:48]} 21. Qf2 {[%clk 0:00:38]}  Ba6 {[%clk 0:00:41]} 22. c4 {[%clk 0:00:33]}  Nf6 {[%clk 0:00:17]} 23. Rae1 {[%clk 0:00:27]}  Bb7 {[%clk 0:00:16]} 24. Rxe6 {[%clk 0:00:21]}  g3 {[%clk 0:00:08]} 25. Qxg3 {[%clk 0:00:17]}  Qc5+ {[%clk 0:00:08]} 26. Kh2 {[%clk 0:00:12]}  Rd2 {[%clk 0:00:05]} 27. Rg1 {[%clk 0:00:07]}  Qf5 {[%clk 0:00:04]} 28. Rxf6 {[%clk 0:00:02]}  Qxf6 {[%clk 0:00:03]} 29. Kh3 {[%clk 0:00:01]}  Qf5+ {[%clk 0:00:03]} 30. Kh2 {[%clk 0:00:01]}  Re8 {[%clk 0:00:03]} 31. Nb5 {[%clk 0:00:02]}  Ree2 {[%clk 0:00:03]} 32. Nf3 {[%clk 0:00:02]}  Bxf3 {[%clk 0:00:01]} 33. Qxf3 {[%clk 0:00:03]}  Qf6 {[%clk 0:00:01]} 34. Qg3 {[%clk 0:00:01]}  Qf5 {[%clk 0:00:01]} 35. Nc7 {[%clk 0:00:02]}  Rf2 {[%clk 0:00:02]} 36. Nd5 {[%clk 0:00:02]}  Qe4 {[%clk 0:00:00]} 37. Qc3+ {[%clk 0:00:02]} 1-0


[Site "https://www.chess.com"]

[Event "Titled Tuesday Blitz October 31 Late 2023"]
[White "leonidsh29"]
[Black "Sreyas Payyappat"]
[BlackFideId "46674969"]
[WhiteElo "2038"]
[BlackElo "2535"]
[Result "0-1"]
[Round "1"]
[TimeControl "180+1"]
[Date "2023.10.31"]
[WhiteClock "0:00:00"]
[BlackClock "0:00:10"]
[Board "166"]

1. d4 {[%clk 0:02:57]}  Nf6 {[%clk 0:02:59]} 2. c4 {[%clk 0:02:55]}  c5 {[%clk 0:03:00]} 3. Nf3 {[%clk 0:02:54]}  e6 {[%clk 0:03:01]} 4. Nc3 {[%clk 0:02:50]}  cxd4 {[%clk 0:03:00]} 5. Nxd4 {[%clk 0:02:49]}  Nc6 {[%clk 0:03:01]} 6. Nxc6 {[%clk 0:02:45]}  bxc6 {[%clk 0:03:00]} 7. g3 {[%clk 0:02:45]}  Bc5 {[%clk 0:02:51]} 8. Bg2 {[%clk 0:02:43]}  O-O {[%clk 0:02:50]} 9. O-O {[%clk 0:02:42]}  d5 {[%clk 0:02:50]} 10. a3 {[%clk 0:02:35]}  a5 {[%clk 0:02:47]} 11. e4 {[%clk 0:02:23]}  Ba6 {[%clk 0:02:42]} 12. exd5 {[%clk 0:02:12]}  Bxc4 {[%clk 0:02:36]} 13. dxc6 {[%clk 0:02:10]}  Bxf1 {[%clk 0:02:36]} 14. Qxf1 {[%clk 0:02:10]}  Qb6 {[%clk 0:02:22]} 15. Na4 {[%clk 0:02:03]}  Qa7 {[%clk 0:02:22]} 16. Nxc5 {[%clk 0:02:02]}  Qxc5 {[%clk 0:02:23]} 17. Be3 {[%clk 0:02:02]}  Qe7 {[%clk 0:02:23]} 18. Rc1 {[%clk 0:01:57]}  Rfc8 {[%clk 0:02:12]} 19. c7 {[%clk 0:01:48]}  Nd5 {[%clk 0:02:12]} 20. Bxd5 {[%clk 0:01:43]}  exd5 {[%clk 0:02:13]} 21. Bb6 {[%clk 0:01:31]}  Qd6 {[%clk 0:01:55]} 22. Qb5 {[%clk 0:01:27]}  d4 {[%clk 0:01:39]} 23. Qc6 {[%clk 0:01:22]}  Qxc6 {[%clk 0:01:36]} 24. Rxc6 {[%clk 0:01:22]}  Kf8 {[%clk 0:00:52]} 25. Rd6 {[%clk 0:01:21]}  Ke7 {[%clk 0:00:51]} 26. Rd8 {[%clk 0:01:19]}  Rxd8 {[%clk 0:00:30]} 27. cxd8=Q+ {[%clk 0:01:17]}  Rxd8 {[%clk 0:00:30]} 28. Bxd8+ {[%clk 0:01:17]}  Kxd8 {[%clk 0:00:31]} 29. b3 {[%clk 0:01:16]}  Kc7 {[%clk 0:00:31]} 30. Kf1 {[%clk 0:01:15]}  Kc6 {[%clk 0:00:31]} 31. Ke2 {[%clk 0:01:15]}  Kd5 {[%clk 0:00:23]} 32. Kd3 {[%clk 0:01:15]}  f5 {[%clk 0:00:21]} 33. f3 {[%clk 0:01:14]}  g6 {[%clk 0:00:15]} 34. b4 {[%clk 0:01:13]}  a4 {[%clk 0:00:14]} 35. b5 {[%clk 0:01:09]}  Kc5 {[%clk 0:00:14]} 36. b6 {[%clk 0:01:08]}  Kxb6 {[%clk 0:00:14]} 37. Kxd4 {[%clk 0:01:08]}  Kb5 {[%clk 0:00:15]} 38. Kd5 {[%clk 0:01:05]}  h6 {[%clk 0:00:15]} 39. f4 {[%clk 0:01:00]}  g5 {[%clk 0:00:12]} 40. h3 {[%clk 0:00:59]}  Kb6 {[%clk 0:00:08]} 41. Kc4 {[%clk 0:00:57]}  Kc6 {[%clk 0:00:08]} 42. Kb4 {[%clk 0:00:56]}  gxf4 {[%clk 0:00:08]} 43. gxf4 {[%clk 0:00:55]}  Kd5 {[%clk 0:00:09]} 44. Kxa4 {[%clk 0:00:54]}  Ke4 {[%clk 0:00:10]} 45. Kb5 {[%clk 0:00:54]}  Kxf4 {[%clk 0:00:11]} 46. a4 {[%clk 0:00:54]}  Ke5 {[%clk 0:00:08]} 47. a5 {[%clk 0:00:54]}  f4 {[%clk 0:00:09]} 48. a6 {[%clk 0:00:52]}  f3 {[%clk 0:00:10]} 49. a7 {[%clk 0:00:51]}  f2 {[%clk 0:00:11]} 50. a8=Q {[%clk 0:00:49]}  f1=Q+ {[%clk 0:00:12]} 51. Kb6 {[%clk 0:00:49]}  Qxh3 {[%clk 0:00:11]} 52. Qb8+ {[%clk 0:00:48]}  Ke4 {[%clk 0:00:11]} 53. Qe8+ {[%clk 0:00:46]}  Kf4 {[%clk 0:00:11]} 54. Qf7+ {[%clk 0:00:45]}  Qf5 {[%clk 0:00:11]} 55. Qc4+ {[%clk 0:00:42]}  Kg5 {[%clk 0:00:11]} 56. Qc1+ {[%clk 0:00:37]}  Kg6 {[%clk 0:00:11]} 57. Qg1+ {[%clk 0:00:36]}  Kf6 {[%clk 0:00:11]} 58. Qd4+ {[%clk 0:00:34]}  Qe5 {[%clk 0:00:11]} 59. Qd8+ {[%clk 0:00:21]}  Kg6 {[%clk 0:00:11]} 60. Qg8+ {[%clk 0:00:17]}  Kh5 {[%clk 0:00:10]} 61. Qf7+ {[%clk 0:00:16]}  Kh4 {[%clk 0:00:10]} 62. Qf2+ {[%clk 0:00:12]}  Qg3 {[%clk 0:00:11]} 63. Qf6+ {[%clk 0:00:11]}  Qg5 {[%clk 0:00:10]} 64. Qf2+ {[%clk 0:00:09]}  Kg4 {[%clk 0:00:09]} 65. Qg2+ {[%clk 0:00:08]}  Kf4 {[%clk 0:00:09]} 66. Qd2+ {[%clk 0:00:07]}  Kf3 {[%clk 0:00:10]} 67. Qd1+ {[%clk 0:00:04]}  Kg2 {[%clk 0:00:10]} 68. Qg4+ {[%clk 0:00:00]}  Qxg4 {[%clk 0:00:10]} 0-1


[Site "https://www.chess.com"]

[Event "Titled Tuesday Blitz October 31 Late 2023"]
[White "Likvidator228"]
[Black "Desideri, Ricardo Maruchi"]
[BlackFideId "2110440"]
[WhiteElo "2530"]
[BlackElo "1951"]
[Result "1-0"]
[Round "1"]
[TimeControl "180+1"]
[Date "2023.10.31"]
[WhiteClock "0:00:25"]
[BlackClock "0:00:08"]
[Board "169"]

1. f4 {[%clk 0:02:57]}  e5 {[%clk 0:02:57]} 2. fxe5 {[%clk 0:02:56]}  d6 {[%clk 0:02:54]} 3. exd6 {[%clk 0:02:56]}  Bxd6 {[%clk 0:02:53]} 4. Nf3 {[%clk 0:02:55]}  g5 {[%clk 0:02:51]} 5. g3 {[%clk 0:02:55]}  g4 {[%clk 0:02:50]} 6. Nh4 {[%clk 0:02:55]}  Ne7 {[%clk 0:02:46]} 7. d4 {[%clk 0:02:37]}  Ng6 {[%clk 0:02:43]} 8. Ng2 {[%clk 0:02:38]}  O-O {[%clk 0:02:35]} 9. e4 {[%clk 0:02:33]}  Nc6 {[%clk 0:02:30]} 10. c3 {[%clk 0:02:25]}  Re8 {[%clk 0:02:24]} 11. Bd3 {[%clk 0:02:25]}  f5 {[%clk 0:02:21]} 12. e5 {[%clk 0:02:09]}  Bxe5 {[%clk 0:01:39]} 13. dxe5 {[%clk 0:02:05]}  Rxe5+ {[%clk 0:01:38]} 14. Kf2 {[%clk 0:01:37]}  Qe7 {[%clk 0:01:35]} 15. Re1 {[%clk 0:01:27]}  Be6 {[%clk 0:01:24]} 16. Bf4 {[%clk 0:01:06]}  Rd5 {[%clk 0:01:20]} 17. Qe2 {[%clk 0:01:02]}  Re8 {[%clk 0:01:16]} 18. Bc4 {[%clk 0:00:59]}  Qc5+ {[%clk 0:01:14]} 19. Be3 {[%clk 0:00:59]}  Nd4 {[%clk 0:00:42]} 20. cxd4 {[%clk 0:00:56]}  Rxd4 {[%clk 0:00:36]} 21. Bxd4 {[%clk 0:00:47]}  Qxd4+ {[%clk 0:00:34]} 22. Ne3 {[%clk 0:00:42]}  f4 {[%clk 0:00:19]} 23. gxf4 {[%clk 0:00:42]}  Nxf4 {[%clk 0:00:18]} 24. Qxg4+ {[%clk 0:00:43]}  Kh8 {[%clk 0:00:16]} 25. Bxe6 {[%clk 0:00:35]}  Qxb2+ {[%clk 0:00:11]} 26. Kf1 {[%clk 0:00:26]}  Qxa1 {[%clk 0:00:10]} 27. Qxf4 {[%clk 0:00:25]}  Rxe6 {[%clk 0:00:08]} 28. Qf8# {[%clk 0:00:25]} 1-0


[Site "https://www.chess.com"]